[Event "GrandPrix_29.05"]
[Site "Chess.com"]
[Date "2020.05.29"]
[Round "5"]
[White "chessdjw"]
[Black "eljanov"]
[Result "0-1"]
[WhiteElo "2132"]
[BlackElo "2399"]
[TimeControl "600+2"]
[EndTime "11:32:01 PDT"]
[Termination "eljanov won by resignation"]

1. e4 {[%clk 0:10:01.9]} 1... e5 {[%clk 0:10:00.2]} 2. Nf3 {[%clk 0:10:03.2]}
2... Nc6 {[%clk 0:10:01.5]} 3. Bb5 {[%clk 0:10:04.9]} 3... g6 {[%clk 0:10:02.9]}
4. c3 {[%clk 0:10:03.4]} 4... a6 {[%clk 0:10:03.6]} 5. Ba4 {[%clk 0:10:03.9]}
5... Bg7 {[%clk 0:10:03.9]} 6. d4 {[%clk 0:10:04.2]} 6... exd4 {[%clk
0:10:03.7]} 7. cxd4 {[%clk 0:10:04.9]} 7... b5 {[%clk 0:10:04.8]} 8. Bb3 {[%clk
0:09:29.2]} 8... Nge7 {[%clk 0:09:51]} 9. Nc3 {[%clk 0:08:58.7]} 9... d6 {[%clk
0:09:45.1]} 10. O-O {[%clk 0:08:51.2]} 10... O-O {[%clk 0:09:41.8]} 11. h3
{[%clk 0:08:37.3]} 11... Na5 {[%clk 0:09:34.7]} 12. Bc2 {[%clk 0:08:08.3]} 12...
Bb7 {[%clk 0:09:35.3]} 13. Re1 {[%clk 0:07:35.8]} 13... Re8 {[%clk 0:09:14.1]}
14. Bf4 {[%clk 0:07:26.4]} 14... Nc4 {[%clk 0:08:29.9]} 15. b3 {[%clk
0:07:20.2]} 15... Na3 {[%clk 0:08:29.9]} 16. Bd3 {[%clk 0:06:10.6]} 16... Nc6
{[%clk 0:08:17.2]} 17. Bf1 {[%clk 0:05:53.2]} 17... b4 {[%clk 0:08:01.4]} 18.
Nd5 {[%clk 0:04:44.6]} 18... Nxd4 {[%clk 0:07:58.5]} 19. Nxd4 {[%clk 0:04:40.7]}
19... Bxd5 {[%clk 0:07:59.5]} 20. exd5 {[%clk 0:03:11.8]} 20... Rxe1 {[%clk
0:07:59.2]} 21. Qxe1 {[%clk 0:03:13.5]} 21... Bxd4 {[%clk 0:08:00.8]} 22. Rc1
{[%clk 0:03:00.7]} 22... Bc5 {[%clk 0:06:46.2]} 23. Qd2 {[%clk 0:02:34.3]} 23...
Nb5 {[%clk 0:06:15.3]} 24. Bg5 {[%clk 0:02:15.7]} 24... Qf8 {[%clk 0:05:21.6]}
25. Re1 {[%clk 0:01:45.9]} 25... f6 {[%clk 0:04:16.6]} 26. Bh6 {[%clk 0:01:46]}
26... Qf7 {[%clk 0:04:17.8]} 27. Bxb5 {[%clk 0:01:20]} 27... axb5 {[%clk
0:04:18.4]} 28. Re6 {[%clk 0:01:21.6]} 28... Re8 {[%clk 0:03:45.5]} 29. Qe2
{[%clk 0:01:21.9]} 29... Rxe6 {[%clk 0:03:46.3]} 30. dxe6 {[%clk 0:01:22.2]}
30... Qe8 {[%clk 0:03:44.3]} 31. g4 {[%clk 0:01:13]} 31... d5 {[%clk 0:03:40]}
32. Kg2 {[%clk 0:01:06.1]} 32... Bf8 {[%clk 0:03:38.1]} 33. Bxf8 {[%clk
0:00:46]} 33... Kxf8 {[%clk 0:03:39.1]} 34. f4 {[%clk 0:00:47.6]} 34... Qc6
{[%clk 0:03:32.7]} 35. f5 {[%clk 0:00:44.4]} 35... Ke7 {[%clk 0:03:14.5]} 36.
Qd2 {[%clk 0:00:37.6]} 36... d4+ {[%clk 0:03:09]} 37. Kf2 {[%clk 0:00:34.6]}
37... Qc5 {[%clk 0:02:39.9]} 38. Qd3 {[%clk 0:00:15.7]} 38... Qe5 {[%clk
0:02:27.6]} 39. Kf3 {[%clk 0:00:04.6]} 39... c6 {[%clk 0:01:33.2]} 40. Qe4
{[%clk 0:00:05.3]} 40... Qc5 {[%clk 0:01:33.1]} 41. Qf4 {[%clk 0:00:05.7]} 41...
Qe5 {[%clk 0:01:21.5]} 42. Qxe5 {[%clk 0:00:03.9]} 42... fxe5 {[%clk 0:01:22.4]}
43. Ke4 {[%clk 0:00:05.6]} 43... c5 {[%clk 0:00:56.9]} 44. Kxe5 {[%clk
0:00:03.6]} 44... d3 {[%clk 0:00:57.9]} 45. f6+ {[%clk 0:00:05.2]} 45... Ke8
{[%clk 0:00:55.7]} 46. e7 {[%clk 0:00:05.5]} 46... Kf7 {[%clk 0:00:56.4]} 47.
Kd6 {[%clk 0:00:05.8]} 47... d2 {[%clk 0:00:57.8]} 0-1

[Event "GrandPrix_29.05"]
[Site "Chess.com"]
[Date "2020.05.29"]
[Round "5"]
[White "Yurovskykh_Alexander"]
[Black "0plaksin0"]
[Result "1-0"]
[WhiteElo "2209"]
[BlackElo "2172"]
[TimeControl "600+2"]
[EndTime "11:32:02 PDT"]
[Termination "Yurovskykh_Alexander won by resignation"]

1. d4 {[%clk 0:09:58.9]} 1... Nf6 {[%clk 0:10:00.8]} 2. Nf3 {[%clk 0:09:51.1]}
2... g6 {[%clk 0:10:01.8]} 3. Bg5 {[%clk 0:09:50.4]} 3... Bg7 {[%clk 0:10:02.7]}
4. Nbd2 {[%clk 0:09:49.8]} 4... d5 {[%clk 0:10:02.7]} 5. e3 {[%clk 0:09:47.5]}
5... O-O {[%clk 0:10:03.4]} 6. Be2 {[%clk 0:09:46.9]} 6... c5 {[%clk 0:10:03.3]}
7. c3 {[%clk 0:09:45.6]} 7... Nc6 {[%clk 0:10:02.8]} 8. O-O {[%clk 0:09:45.2]}
8... b6 {[%clk 0:09:49.7]} 9. Qa4 {[%clk 0:09:36.4]} 9... Bb7 {[%clk 0:09:49.4]}
10. Rfd1 {[%clk 0:09:36]} 10... cxd4 {[%clk 0:08:59.5]} 11. exd4 {[%clk
0:08:00.1]} 11... h6 {[%clk 0:07:53.8]} 12. Bh4 {[%clk 0:07:50.4]} 12... Nh5
{[%clk 0:07:28.7]} 13. Bg3 {[%clk 0:07:30.6]} 13... Nxg3 {[%clk 0:07:26.8]} 14.
hxg3 {[%clk 0:07:32.5]} 14... e6 {[%clk 0:07:14.8]} 15. Re1 {[%clk 0:07:30.1]}
15... Qd7 {[%clk 0:06:41.7]} 16. Qd1 {[%clk 0:07:17.9]} 16... Rfd8 {[%clk
0:06:19.8]} 17. Bd3 {[%clk 0:07:17.8]} 17... Rac8 {[%clk 0:05:26.2]} 18. Qe2
{[%clk 0:07:13.9]} 18... Re8 {[%clk 0:05:11.9]} 19. Ne5 {[%clk 0:06:50.1]} 19...
Nxe5 {[%clk 0:04:58.6]} 20. dxe5 {[%clk 0:06:52]} 20... d4 {[%clk 0:03:29.2]}
21. c4 {[%clk 0:06:51.4]} 21... Rc5 {[%clk 0:03:16.1]} 22. f4 {[%clk 0:06:49.1]}
22... Bf8 {[%clk 0:02:58.2]} 23. Ne4 {[%clk 0:06:11.1]} 23... Bxe4 {[%clk
0:02:58.6]} 24. Qxe4 {[%clk 0:06:13]} 24... Rc7 {[%clk 0:02:02.7]} 25. Kf2
{[%clk 0:03:05.8]} 25... a6 {[%clk 0:01:48.3]} 26. a4 {[%clk 0:02:25.7]} 26...
a5 {[%clk 0:01:44.1]} 27. b3 {[%clk 0:02:20.7]} 27... Qc6 {[%clk 0:01:26.2]} 28.
Qe2 {[%clk 0:02:08.5]} 28... Qc5 {[%clk 0:01:22.3]} 29. Rh1 {[%clk 0:02:05.9]}
29... Qe7 {[%clk 0:00:59.8]} 30. Rh3 {[%clk 0:01:54.2]} 30... Bg7 {[%clk
0:00:56.4]} 31. Rah1 {[%clk 0:01:48.1]} 31... Qf8 {[%clk 0:00:49.4]} 32. g4
{[%clk 0:01:44]} 32... Rc5 {[%clk 0:00:35.3]} 33. Qe4 {[%clk 0:01:34.8]} 33...
Rd8 {[%clk 0:00:25.9]} 34. g3 {[%clk 0:01:27.2]} 34... Rd7 {[%clk 0:00:19.3]}
35. R1h2 {[%clk 0:01:28.2]} 35... Rd8 {[%clk 0:00:19.2]} 36. Qh1 {[%clk
0:01:29.3]} 36... Rd7 {[%clk 0:00:18]} 37. g5 {[%clk 0:01:27.8]} 37... h5 {[%clk
0:00:03]} 38. g4 {[%clk 0:01:21.2]} 38... f5 {[%clk 0:00:03.7]} 39. gxf6 {[%clk
0:01:04.7]} 39... Bxf6 {[%clk 0:00:02.7]} 40. exf6 {[%clk 0:01:06.1]} 40... Qxf6
{[%clk 0:00:03.9]} 41. Qe4 {[%clk 0:01:06.9]} 41... g5 {[%clk 0:00:02.8]} 42.
Rxh5 {[%clk 0:01:05.3]} 42... gxf4 {[%clk 0:00:02.4]} 43. Rh8+ {[%clk
0:00:57.3]} 43... Qxh8 {[%clk 0:00:03.6]} 44. Qxe6+ {[%clk 0:00:55.4]} 44... Rf7
{[%clk 0:00:03.1]} 45. Rxh8+ {[%clk 0:00:53.4]} 45... Kxh8 {[%clk 0:00:04]} 1-0

[Event "GrandPrix_29.05"]
[Site "Chess.com"]
[Date "2020.05.29"]
[Round "5"]
[White "GM_LOADING"]
[Black "Martin_Petrov2000"]
[Result "1-0"]
[WhiteElo "2342"]
[BlackElo "2080"]
[TimeControl "600+2"]
[EndTime "11:32:04 PDT"]
[Termination "GM_LOADING won by resignation"]

1. e4 {[%clk 0:10:01.9]} 1... c5 {[%clk 0:09:58.4]} 2. Nf3 {[%clk 0:10:03.1]}
2... d6 {[%clk 0:09:58.3]} 3. d4 {[%clk 0:10:04.6]} 3... cxd4 {[%clk 0:10:00.2]}
4. Nxd4 {[%clk 0:10:06.5]} 4... Nf6 {[%clk 0:10:01.2]} 5. Nc3 {[%clk 0:10:08]}
5... a6 {[%clk 0:10:02.4]} 6. h3 {[%clk 0:10:09.6]} 6... e5 {[%clk 0:10:03]} 7.
Nde2 {[%clk 0:10:09.3]} 7... b5 {[%clk 0:10:03.2]} 8. g4 {[%clk 0:10:04]} 8...
b4 {[%clk 0:10:04.4]} 9. Nd5 {[%clk 0:10:04.4]} 9... Nxd5 {[%clk 0:10:05.9]} 10.
Qxd5 {[%clk 0:10:06.1]} 10... Ra7 {[%clk 0:10:07.2]} 11. Be3 {[%clk 0:10:02.1]}
11... Be6 {[%clk 0:10:08.1]} 12. Qd2 {[%clk 0:10:00.7]} 12... Rd7 {[%clk
0:10:08.8]} 13. Bg2 {[%clk 0:09:40.3]} 13... h5 {[%clk 0:09:51]} 14. gxh5 {[%clk
0:09:31.6]} 14... Rxh5 {[%clk 0:09:38.2]} 15. Ng3 {[%clk 0:09:05.4]} 15... Rh7
{[%clk 0:09:25.6]} 16. Bg5 {[%clk 0:08:53.1]} 16... f6 {[%clk 0:06:51.3]} 17.
Be3 {[%clk 0:08:52.2]} 17... d5 {[%clk 0:06:52.6]} 18. exd5 {[%clk 0:08:49.7]}
18... Bxd5 {[%clk 0:06:52.9]} 19. Bxd5 {[%clk 0:08:45.5]} 19... Rxd5 {[%clk
0:06:52.4]} 20. Qe2 {[%clk 0:08:46.9]} 20... g6 {[%clk 0:06:14.5]} 21. h4 {[%clk
0:04:20.4]} 21... Kf7 {[%clk 0:02:32]} 22. h5 {[%clk 0:03:44.3]} 22... g5 {[%clk
0:02:32.5]} 23. Qf3 {[%clk 0:02:24.5]} 23... Kg8 {[%clk 0:02:22]} 24. Ne4 {[%clk
0:02:07]} 24... Be7 {[%clk 0:02:20.8]} 25. Ke2 {[%clk 0:01:26.6]} 25... Rh6
{[%clk 0:02:17]} 26. Rad1 {[%clk 0:01:13.5]} 26... Rd7 {[%clk 0:02:09.1]} 27.
Rxd7 {[%clk 0:00:22.7]} 27... Qxd7 {[%clk 0:02:10.2]} 28. Rd1 {[%clk 0:00:23.7]}
28... Qc6 {[%clk 0:01:58.2]} 29. Qf5 {[%clk 0:00:18.3]} 29... Qxc2+ {[%clk
0:01:52.1]} 30. Rd2 {[%clk 0:00:14.6]} 30... Qc4+ {[%clk 0:01:49]} 31. Kf3
{[%clk 0:00:11.2]} 31... Qf7 {[%clk 0:01:49]} 32. Ng3 {[%clk 0:00:08.7]} 32...
Rh8 {[%clk 0:01:23.9]} 33. h6 {[%clk 0:00:07.5]} 33... Nc6 {[%clk 0:00:48.7]}
34. Qc8+ {[%clk 0:00:08.2]} 34... Nd8 {[%clk 0:00:49.8]} 35. Rd7 {[%clk
0:00:08.7]} 35... f5 {[%clk 0:00:25.8]} 36. Bxg5 {[%clk 0:00:07.6]} 36... e4+
{[%clk 0:00:19]} 37. Kg2 {[%clk 0:00:09]} 37... Bxg5 {[%clk 0:00:19.5]} 38. Rxf7
{[%clk 0:00:09.9]} 38... Kxf7 {[%clk 0:00:19.5]} 39. Qxf5+ {[%clk 0:00:11]}
39... Bf6 {[%clk 0:00:20.4]} 40. h7 {[%clk 0:00:12.5]} 40... Ne6 {[%clk
0:00:20.4]} 41. Nxe4 {[%clk 0:00:09.7]} 1-0

[Event "GrandPrix_29.05"]
[Site "Chess.com"]
[Date "2020.05.29"]
[Round "5"]
[White "troisi"]
[Black "benko_008"]
[Result "0-1"]
[WhiteElo "1524"]
[BlackElo "2052"]
[TimeControl "600+2"]
[EndTime "11:32:04 PDT"]
[Termination "benko_008 won by checkmate"]

1. e4 {[%clk 0:09:58.5]} 1... c5 {[%clk 0:09:59.7]} 2. c3 {[%clk 0:09:40.1]}
2... Nf6 {[%clk 0:09:58.7]} 3. e5 {[%clk 0:09:31.4]} 3... Nd5 {[%clk 0:09:58.1]}
4. d4 {[%clk 0:09:20.4]} 4... cxd4 {[%clk 0:09:57.4]} 5. cxd4 {[%clk 0:09:22.3]}
5... e6 {[%clk 0:09:55.8]} 6. Nf3 {[%clk 0:09:21.4]} 6... d6 {[%clk 0:09:55.9]}
7. Bc4 {[%clk 0:09:20]} 7... Nc6 {[%clk 0:09:54.7]} 8. O-O {[%clk 0:09:19.8]}
8... Be7 {[%clk 0:09:54]} 9. Qe2 {[%clk 0:09:19.2]} 9... O-O {[%clk 0:09:52.5]}
10. Nc3 {[%clk 0:09:17.8]} 10... dxe5 {[%clk 0:09:29.4]} 11. dxe5 {[%clk
0:09:11]} 11... Nxc3 {[%clk 0:09:28.5]} 12. bxc3 {[%clk 0:09:12.9]} 12... Qa5
{[%clk 0:09:25.1]} 13. Bd2 {[%clk 0:09:06.1]} 13... Rd8 {[%clk 0:09:20.5]} 14.
Qe4 {[%clk 0:08:58.8]} 14... Bd7 {[%clk 0:08:50.7]} 15. Rfe1 {[%clk 0:07:56.2]}
15... Be8 {[%clk 0:08:34.1]} 16. Bd3 {[%clk 0:07:06.2]} 16... g6 {[%clk
0:08:25.3]} 17. c4 {[%clk 0:06:55.7]} 17... Qa3 {[%clk 0:07:33.6]} 18. Bc2
{[%clk 0:06:35.5]} 18... Nb4 {[%clk 0:07:04.4]} 19. Bg5 {[%clk 0:05:48.5]} 19...
Nxc2 {[%clk 0:06:42]} 20. Qxc2 {[%clk 0:05:34.6]} 20... Bc6 {[%clk 0:06:33.4]}
21. Re3 {[%clk 0:05:15.5]} 21... Qc5 {[%clk 0:06:28.2]} 22. Bxe7 {[%clk
0:05:08.3]} 22... Qxe7 {[%clk 0:06:27.8]} 23. Rd1 {[%clk 0:03:48.6]} 23... Kg7
{[%clk 0:06:06.2]} 24. Nd4 {[%clk 0:03:34.2]} 24... Qc5 {[%clk 0:05:39.2]} 25.
Nxc6 {[%clk 0:02:59.9]} 25... Qxc6 {[%clk 0:05:39]} 26. Red3 {[%clk 0:02:38.9]}
26... Rxd3 {[%clk 0:04:13.9]} 27. Rxd3 {[%clk 0:02:38.5]} 27... Qe4 {[%clk
0:04:07.9]} 28. g3 {[%clk 0:00:57.3]} 28... Rd8 {[%clk 0:03:38.5]} 29. Rc3
{[%clk 0:00:49.6]} 29... Qe1+ {[%clk 0:03:14.7]} 30. Kg2 {[%clk 0:00:49.1]}
30... Rd1 {[%clk 0:03:14.5]} 31. Re3 {[%clk 0:00:16]} 31... Qh1+ {[%clk
0:02:39.3]} 32. Kh3 {[%clk 0:00:16.5]} 32... Qf1+ {[%clk 0:02:40.1]} 33. Kg4
{[%clk 0:00:11.4]} 33... Rc1 {[%clk 0:02:32.8]} 34. Qd3 {[%clk 0:00:11.2]} 34...
Rxc4+ {[%clk 0:02:26.4]} 35. Kf3 {[%clk 0:00:12.1]} 35... Qh1+ {[%clk 0:02:20]}
36. Ke2 {[%clk 0:00:13]} 36... Rc1 {[%clk 0:02:15.5]} 37. Qd2 {[%clk 0:00:10.9]}
37... Ra1 {[%clk 0:01:51.4]} 38. h4 {[%clk 0:00:05.9]} 38... b6 {[%clk
0:01:35.2]} 39. Ra3 {[%clk 0:00:06]} 39... Qf1+ {[%clk 0:01:29]} 40. Kf3 {[%clk
0:00:06.2]} 40... Re1 {[%clk 0:01:26.8]} 41. Qf4 {[%clk 0:00:04.3]} 41... Qh1+
{[%clk 0:01:22.2]} 42. Kg4 {[%clk 0:00:05.3]} 42... Re4 {[%clk 0:01:20.8]} 43.
Rf3 {[%clk 0:00:06.8]} 43... h5+ {[%clk 0:00:58.4]} 44. Kg5 {[%clk 0:00:07.6]}
44... Rxf4 {[%clk 0:00:58.6]} 45. Rxf4 {[%clk 0:00:09.5]} 45... Qd5 {[%clk
0:00:55.7]} 46. Re4 {[%clk 0:00:03.3]} 46... Qxe4 {[%clk 0:00:53.4]} 47. f4
{[%clk 0:00:04.9]} 47... Qf5# {[%clk 0:00:53.7]} 0-1

[Event "GrandPrix_29.05"]
[Site "Chess.com"]
[Date "2020.05.29"]
[Round "5"]
[White "EvgenyPigusov"]
[Black "Semen_Khanin"]
[Result "1/2-1/2"]
[WhiteElo "2242"]
[BlackElo "2399"]
[TimeControl "600+2"]
[EndTime "11:32:06 PDT"]
[Termination "Game drawn by stalemate"]

1. Nf3 {[%clk 0:10:01.9]} 1... Nf6 {[%clk 0:10:00.7]} 2. c4 {[%clk 0:10:02.3]}
2... g6 {[%clk 0:10:02.4]} 3. g3 {[%clk 0:10:03.1]} 3... Bg7 {[%clk 0:10:03.4]}
4. Bg2 {[%clk 0:10:03.8]} 4... O-O {[%clk 0:10:05]} 5. d4 {[%clk 0:10:05]} 5...
d5 {[%clk 0:10:05.8]} 6. cxd5 {[%clk 0:10:05.4]} 6... Nxd5 {[%clk 0:10:06.9]} 7.
O-O {[%clk 0:10:05.9]} 7... Nc6 {[%clk 0:09:58.3]} 8. e4 {[%clk 0:10:04.8]} 8...
Nb6 {[%clk 0:09:57.7]} 9. d5 {[%clk 0:10:05.2]} 9... Na5 {[%clk 0:09:53.7]} 10.
Nc3 {[%clk 0:10:05]} 10... c6 {[%clk 0:09:52.7]} 11. Bf4 {[%clk 0:10:03.6]}
11... cxd5 {[%clk 0:09:45.8]} 12. Nxd5 {[%clk 0:10:03.6]} 12... Nxd5 {[%clk
0:09:43.4]} 13. exd5 {[%clk 0:10:03.3]} 13... Nc4 {[%clk 0:09:20.4]} 14. b3
{[%clk 0:09:55.5]} 14... Nd6 {[%clk 0:08:18.5]} 15. Be5 {[%clk 0:09:55.1]} 15...
Bxe5 {[%clk 0:08:10.7]} 16. Nxe5 {[%clk 0:09:55.2]} 16... Bf5 {[%clk 0:08:05.5]}
17. Re1 {[%clk 0:09:50.4]} 17... Rc8 {[%clk 0:08:05.5]} 18. Qd4 {[%clk 0:09:34]}
18... f6 {[%clk 0:07:03.3]} 19. Nc4 {[%clk 0:09:25.7]} 19... b6 {[%clk
0:07:00.5]} 20. Ne3 {[%clk 0:09:08]} 20... Bd7 {[%clk 0:06:46.1]} 21. Qd2 {[%clk
0:08:39.8]} 21... Qc7 {[%clk 0:06:35.4]} 22. Rac1 {[%clk 0:08:34.1]} 22... Qb8
{[%clk 0:06:36.5]} 23. Nc2 {[%clk 0:08:34.4]} 23... Rfe8 {[%clk 0:06:29.1]} 24.
Nd4 {[%clk 0:08:34]} 24... Rxc1 {[%clk 0:05:58.2]} 25. Qxc1 {[%clk 0:08:31]}
25... Nf5 {[%clk 0:05:55.4]} 26. Nc6 {[%clk 0:08:24]} 26... Qd6 {[%clk
0:05:56.5]} 27. Be4 {[%clk 0:07:51.4]} 27... e5 {[%clk 0:05:07.5]} 28. a4 {[%clk
0:05:52.2]} 28... Nd4 {[%clk 0:04:41.8]} 29. Qc3 {[%clk 0:05:13.9]} 29... Rc8
{[%clk 0:03:15.3]} 30. f4 {[%clk 0:03:59.8]} 30... Nxc6 {[%clk 0:02:54.6]} 31.
dxc6 {[%clk 0:03:56.4]} 31... Bxc6 {[%clk 0:02:55.8]} 32. fxe5 {[%clk
0:03:54.5]} 32... fxe5 {[%clk 0:02:12.4]} 33. Bxc6 {[%clk 0:03:35.6]} 33... Rxc6
{[%clk 0:02:13.2]} 34. Qxe5 {[%clk 0:03:35.2]} 34... Qxe5 {[%clk 0:02:14.5]} 35.
Rxe5 {[%clk 0:03:35.1]} 35... Rc3 {[%clk 0:02:15.6]} 36. Rb5 {[%clk 0:03:16.4]}
36... Kf7 {[%clk 0:01:45.8]} 37. a5 {[%clk 0:03:15.5]} 37... Rc5 {[%clk
0:01:16]} 38. Rb4 {[%clk 0:02:59.9]} 38... Rxa5 {[%clk 0:01:16.5]} 39. Kg2
{[%clk 0:02:55.2]} 39... Ra2+ {[%clk 0:01:16.7]} 40. Kf3 {[%clk 0:02:51.8]}
40... Rxh2 {[%clk 0:01:15.4]} 41. Ra4 {[%clk 0:02:52.4]} 41... a5 {[%clk
0:01:08.6]} 42. b4 {[%clk 0:02:53.4]} 42... Rh5 {[%clk 0:01:09.7]} 43. bxa5
{[%clk 0:02:45.9]} 43... Rxa5 {[%clk 0:01:10.3]} 44. Rb4 {[%clk 0:02:30.4]}
44... Rf5+ {[%clk 0:01:11.8]} 45. Ke4 {[%clk 0:02:29.1]} 45... b5 {[%clk
0:01:10]} 46. Rb1 {[%clk 0:02:29.1]} 46... h5 {[%clk 0:01:08.4]} 47. Rc1 {[%clk
0:02:28.6]} 47... Kf6 {[%clk 0:01:09]} 48. Rc6+ {[%clk 0:02:27.4]} 48... Kg5
{[%clk 0:01:06.7]} 49. Rb6 {[%clk 0:02:28.3]} 49... Rc5 {[%clk 0:00:54.2]} 50.
Kf3 {[%clk 0:02:21.5]} 50... Kf5 {[%clk 0:00:52.4]} 51. Kg2 {[%clk 0:02:10.8]}
51... g5 {[%clk 0:00:50]} 52. Kh3 {[%clk 0:02:11.2]} 52... Ke4 {[%clk 0:00:48]}
53. Rh6 {[%clk 0:02:06.2]} 53... g4+ {[%clk 0:00:48.1]} 54. Kh4 {[%clk
0:02:06.9]} 54... Kd4 {[%clk 0:00:40.2]} 55. Rd6+ {[%clk 0:01:47.3]} 55... Rd5
{[%clk 0:00:20.8]} 56. Rb6 {[%clk 0:01:43]} 56... Ke4 {[%clk 0:00:04.4]} 57.
Rxb5 {[%clk 0:01:41.6]} 57... Rxb5 {[%clk 0:00:02.2]} 1/2-1/2

[Event "GrandPrix_29.05"]
[Site "Chess.com"]
[Date "2020.05.29"]
[Round "5"]
[White "Vuk2000"]
[Black "SamadovRead"]
[Result "1-0"]
[WhiteElo "2242"]
[BlackElo "1961"]
[TimeControl "600+2"]
[EndTime "11:32:06 PDT"]
[Termination "Vuk2000 won by resignation"]

1. d4 {[%clk 0:10:01.9]} 1... Nf6 {[%clk 0:10:00.1]} 2. Bg5 {[%clk 0:10:02.7]}
2... d5 {[%clk 0:09:59.2]} 3. Bxf6 {[%clk 0:09:55.9]} 3... exf6 {[%clk
0:09:58.5]} 4. e3 {[%clk 0:09:56.4]} 4... Bd6 {[%clk 0:09:56.9]} 5. g3 {[%clk
0:09:56.4]} 5... c6 {[%clk 0:09:56.3]} 6. Bg2 {[%clk 0:09:55.8]} 6... O-O {[%clk
0:09:57.1]} 7. Nd2 {[%clk 0:09:56.2]} 7... f5 {[%clk 0:09:56.5]} 8. Ne2 {[%clk
0:09:55.1]} 8... Nd7 {[%clk 0:09:55.5]} 9. c4 {[%clk 0:09:50.5]} 9... dxc4
{[%clk 0:09:48.4]} 10. Nxc4 {[%clk 0:09:52.4]} 10... Bb4+ {[%clk 0:09:46.5]} 11.
Nc3 {[%clk 0:09:52.6]} 11... Nb6 {[%clk 0:09:18.6]} 12. Ne5 {[%clk 0:09:23.6]}
12... Nd7 {[%clk 0:07:20.8]} 13. Nd3 {[%clk 0:08:54.4]} 13... Bd6 {[%clk
0:07:05.1]} 14. O-O {[%clk 0:08:27.4]} 14... Nb6 {[%clk 0:06:48.5]} 15. Nc5
{[%clk 0:08:10]} 15... Qe7 {[%clk 0:06:13.4]} 16. b4 {[%clk 0:08:03.8]} 16... a5
{[%clk 0:06:10.3]} 17. a3 {[%clk 0:07:58.4]} 17... axb4 {[%clk 0:05:03.3]} 18.
axb4 {[%clk 0:08:00.3]} 18... Be6 {[%clk 0:05:00.9]} 19. Qc2 {[%clk 0:07:35.9]}
19... g6 {[%clk 0:04:52.2]} 20. Nxe6 {[%clk 0:07:25.6]} 20... Qxe6 {[%clk
0:04:52.2]} 21. b5 {[%clk 0:07:26.5]} 21... Qc4 {[%clk 0:04:27.5]} 22. bxc6
{[%clk 0:06:58.9]} 22... bxc6 {[%clk 0:04:24.3]} 23. Qb2 {[%clk 0:06:41.5]}
23... Rab8 {[%clk 0:03:48.5]} 24. Rfc1 {[%clk 0:06:29]} 24... Qe6 {[%clk
0:03:13.7]} 25. Qa2 {[%clk 0:05:30.7]} 25... Rfc8 {[%clk 0:01:16]} 26. Qa6
{[%clk 0:04:53.5]} 26... Bb4 {[%clk 0:01:01.8]} 27. Rab1 {[%clk 0:04:14]} 27...
c5 {[%clk 0:00:39.6]} 28. Nb5 {[%clk 0:03:54.3]} 28... Nd7 {[%clk 0:00:25.9]}
29. Qxe6 {[%clk 0:03:10.5]} 29... fxe6 {[%clk 0:00:27.8]} 30. Na7 {[%clk
0:03:11]} 30... Rf8 {[%clk 0:00:27.5]} 31. Bc6 {[%clk 0:02:02.9]} 31... Rf7
{[%clk 0:00:26.6]} 32. Bxd7 {[%clk 0:01:57.7]} 32... Rxd7 {[%clk 0:00:27.3]} 33.
Nc6 {[%clk 0:01:58.6]} 33... Rb6 {[%clk 0:00:23.7]} 34. Ne5 {[%clk 0:01:38.8]}
34... Rd5 {[%clk 0:00:18.3]} 35. Nd3 {[%clk 0:01:39.2]} 35... Ra6 {[%clk
0:00:14]} 36. Nf4 {[%clk 0:01:30]} 36... Rd8 {[%clk 0:00:11.6]} 37. dxc5 {[%clk
0:01:30.4]} 37... Ba3 {[%clk 0:00:13.1]} 38. Rc3 {[%clk 0:01:29.5]} 38... Rc8
{[%clk 0:00:11.1]} 39. Ra1 {[%clk 0:01:29.6]} 39... Bb2 {[%clk 0:00:08.7]} 40.
Rxa6 {[%clk 0:01:28.2]} 40... Bxc3 {[%clk 0:00:10.4]} 41. Nxe6 {[%clk
0:01:28.3]} 41... Bb4 {[%clk 0:00:11.8]} 42. c6 {[%clk 0:01:25.8]} 42... Kf7
{[%clk 0:00:13.2]} 43. Nd4 {[%clk 0:01:25.9]} 43... Kf6 {[%clk 0:00:12.2]} 44.
Nb5 {[%clk 0:01:13.1]} 44... Ke5 {[%clk 0:00:11.7]} 45. c7 {[%clk 0:01:09.9]}
45... Kd5 {[%clk 0:00:11.9]} 46. Rb6 {[%clk 0:01:10.1]} 46... Ba5 {[%clk
0:00:08.8]} 47. Rb8 {[%clk 0:01:05.1]} 47... Rxc7 {[%clk 0:00:10.2]} 48. Nxc7+
{[%clk 0:01:04.6]} 48... Bxc7 {[%clk 0:00:11.5]} 49. Rh8 {[%clk 0:01:05.4]}
49... h5 {[%clk 0:00:12.2]} 50. Rh6 {[%clk 0:01:05.2]} 1-0

[Event "GrandPrix_29.05"]
[Site "Chess.com"]
[Date "2020.05.29"]
[Round "5"]
[White "imdvb6307"]
[Black "PotapovaM"]
[Result "1/2-1/2"]
[WhiteElo "2105"]
[BlackElo "2172"]
[TimeControl "600+2"]
[EndTime "11:32:09 PDT"]
[Termination "Game drawn by repetition"]

1. c4 {[%clk 0:10:00.1]} 1... Nf6 {[%clk 0:10:00.6]} 2. Nc3 {[%clk 0:09:59]}
2... e6 {[%clk 0:10:01.3]} 3. e4 {[%clk 0:09:58.8]} 3... d5 {[%clk 0:10:02.3]}
4. e5 {[%clk 0:09:57.9]} 4... d4 {[%clk 0:10:03]} 5. exf6 {[%clk 0:09:52.5]}
5... dxc3 {[%clk 0:10:03.6]} 6. fxg7 {[%clk 0:09:47.2]} 6... cxd2+ {[%clk
0:09:54]} 7. Qxd2 {[%clk 0:09:48]} 7... Qxd2+ {[%clk 0:09:53.8]} 8. Bxd2 {[%clk
0:09:48.5]} 8... Bxg7 {[%clk 0:09:54.9]} 9. O-O-O {[%clk 0:09:49.5]} 9... Nc6
{[%clk 0:09:38.7]} 10. Nf3 {[%clk 0:09:48]} 10... b6 {[%clk 0:09:08.6]} 11. Bd3
{[%clk 0:08:46.3]} 11... Bb7 {[%clk 0:09:06.4]} 12. Kc2 {[%clk 0:08:14.1]} 12...
O-O-O {[%clk 0:08:58.6]} 13. Bc3 {[%clk 0:08:13.8]} 13... Bxc3 {[%clk
0:08:50.2]} 14. Kxc3 {[%clk 0:08:13.8]} 14... Rhg8 {[%clk 0:08:47.1]} 15. Rhg1
{[%clk 0:07:50.6]} 15... Ne7 {[%clk 0:07:31.7]} 16. Be2 {[%clk 0:07:11.3]} 16...
Rxd1 {[%clk 0:07:23.5]} 17. Bxd1 {[%clk 0:07:10.8]} 17... Nf5 {[%clk 0:06:40.9]}
18. g3 {[%clk 0:07:10.6]} 18... Nd6 {[%clk 0:06:35.3]} 19. Nd2 {[%clk
0:07:02.8]} 19... Ne4+ {[%clk 0:05:16.8]} 20. Nxe4 {[%clk 0:07:02]} 20... Bxe4
{[%clk 0:05:18.7]} 21. Re1 {[%clk 0:07:03]} 21... Bf5 {[%clk 0:05:03.2]} 22. g4
{[%clk 0:04:43.1]} 22... Bg6 {[%clk 0:04:30.2]} 23. f4 {[%clk 0:04:19.3]} 23...
Rd8 {[%clk 0:04:26.5]} 24. Be2 {[%clk 0:04:18.7]} 24... c5 {[%clk 0:04:22.6]}
25. Rd1 {[%clk 0:04:15.2]} 25... Rxd1 {[%clk 0:04:09.3]} 26. Bxd1 {[%clk
0:04:14.8]} 26... Kc7 {[%clk 0:03:26]} 27. Kd2 {[%clk 0:04:04.4]} 27... Kd6
{[%clk 0:03:23.8]} 28. Ke3 {[%clk 0:04:04]} 28... Bb1 {[%clk 0:03:23.3]} 29. a3
{[%clk 0:04:02.3]} 29... a6 {[%clk 0:03:24.2]} 30. Be2 {[%clk 0:03:58]} 30... f6
{[%clk 0:02:35.6]} 31. h4 {[%clk 0:03:54.5]} 31... e5 {[%clk 0:02:32.4]} 32. f5
{[%clk 0:02:25.9]} 32... h5 {[%clk 0:01:13.3]} 33. g5 {[%clk 0:01:59.6]} 33...
fxg5 {[%clk 0:00:51.2]} 34. hxg5 {[%clk 0:01:59.9]} 34... Bxf5 {[%clk
0:00:43.7]} 35. Bxh5 {[%clk 0:01:59.8]} 35... Ke6 {[%clk 0:00:37.9]} 36. Kf2
{[%clk 0:00:23.1]} 36... Bd3 {[%clk 0:00:35.7]} 37. Bg4+ {[%clk 0:00:19.9]}
37... Bf5 {[%clk 0:00:35.4]} 38. Be2 {[%clk 0:00:13]} 38... Bc2 {[%clk 0:00:33]}
39. Bg4+ {[%clk 0:00:10.9]} 39... Bf5 {[%clk 0:00:20]} 40. Be2 {[%clk
0:00:09.8]} 40... Bc2 {[%clk 0:00:17.6]} 41. Bg4+ {[%clk 0:00:09.6]} 41... Bf5
{[%clk 0:00:18.5]} 1/2-1/2